bitfinex/quotes_ETHUSD_20240603
["timestamp","ask_amount","ask_price","bid_price","bid_amount"]
[1717432757848,1.90127499,3774.8,3774.7,1.32126577]
[1717432758087,1.62542905,3774.8,3774.7,1.71831635]
[1717432758381,0.43036588,3774.8,3774.7,1.71831635]
[1717432759354,0.02715722,3774.8,3774.7,1.71831635]
[1717432759641,0.82688478,3775.2,3774.8,2.64914]
[1717432759642,0.55103884,3775.1,3774.8,2.64914]
[1717432759844,0.55103884,3775.1,3774.7,1.71831635]
[1717432759845,0.55103884,3775.1,3775.0,2.649]
[1717432760045,1.047668,3775.1,3775.0,4.40699741]
[1717432760478,0.40337401,3775.1,3775.0,4.40699741]
[1717432761187,3.69663661,3775.1,3774.0,2.64966]
[1717432761375,0.55105186,3774.5,3774.1,1.32126577]
[1717432761559,1.59873847,3774.4,3774.1,1.32126577]
[1717432761773,1.04768661,3774.3,3774.1,1.32126577]
[1717432762062,0.47125491,3774.2,3774.1,1.32126577]
[1717432762505,0.47125491,3774.2,3774.1,1.71835835]
[1717432762785,0.55105186,3774.4,3774.2,2.64956]
[1717432762944,0.55105186,3774.6,3774.3,1.32126577]
[1717432763145,1.71754834,3774.5,3774.3,1.32126577]
[1717432763388,0.47129737,3774.4,3774.3,1.32126577]
[1717432764347,1.16644218,3774.4,3774.3,1.32126577]
[1717432764581,0.47129737,3774.4,3774.3,1.75805761]
[1717432764745,1.16646412,3774.4,3774.3,1.75805761]
[1717432764946,0.47129737,3774.4,3774.3,1.75805761]
[1717432765851,1.16648957,3774.4,3774.3,1.75805761]
[1717432766381,0.47129737,3774.4,3774.3,1.75805761]
[1717432767087,1.16644278,3774.4,3774.3,1.75805761]
[1717432767790,1.71749464,3774.4,3774.3,1.75805761]
[1717432767977,1.71749464,3774.4,3774.3,1.32126577]
[1717432769453,1.16644278,3774.4,3774.3,1.32126577]
[1717432769653,1.19243464,3774.4,3774.3,1.32126577]
[1717432769853,1.74346913,3774.4,3774.3,1.32126577]
[1717432771989,1.74345104,3774.4,3774.3,1.32126577]
[1717432772392,1.19239918,3774.4,3774.3,1.32126577]
[1717432773299,1.74345104,3774.4,3774.3,1.32126577]
[1717432773501,1.19239918,3774.4,3774.3,1.32126577]
[1717432773709,0.49725299,3774.4,3774.3,9.10405761]
[1717432773860,0.02599186,3774.4,3774.3,9.10405761]
[1717432774054,0.02599186,3774.4,3774.3,6.68005761]
[1717432774260,0.55105186,3774.9,3774.4,2.64937]
[1717432774498,0.82688478,3775.1,3774.3,6.68005761]
[1717432774499,1.71747634,3774.8,3774.6,2.64928]
[1717432774794,0.55105186,3774.8,3774.7,1.32126577]
[1717432775090,0.55105186,3775.1,3774.7,11.34306577]
[1717432775297,0.55105186,3775.1,3775.0,2.649]
[1717432775492,0.55105186,3775.1,3775.0,8.15747235]
[1717432775650,0.55105186,3775.4,3775.0,8.15747235]
[1717432775852,0.47131869,3775.3,3775.0,8.15747235]
[1717432776066,0.55105186,3775.5,3775.4,2.64872]
[1717432776309,1.71758625,3775.5,3775.4,3.96998577]
[1717432776455,1.71758625,3775.5,3775.4,4.36698435]
[1717432776655,0.47131391,3775.5,3775.4,9.28898435]
[1717432776994,0.55105186,3776.0,3775.9,2.64837]
[1717432777171,1.16667226,3776.0,3775.9,3.96963577]
[1717432777573,0.47137027,3776.0,3775.9,3.96963577]
[1717432777890,3.05105186,3776.1,3775.9,4.36659935]
[1717432777891,2.5,3776.1,3775.9,4.36659935]
[1717432778074,2.5,3776.1,3776.0,1.32126577]
[1717432778275,2.97124023,3776.1,3776.0,1.32126577]
[1717432778524,4.21716512,3776.1,3776.0,1.32126577]
[1717432778991,4.21688876,3776.1,3776.0,1.32126577]
[1717432779794,1.71688876,3776.1,3776.0,1.32126577]
[1717432780520,1.16611326,3776.1,3776.0,1.32126577]
[1717432781301,1.16586131,3776.1,3776.0,1.32126577]
[1717432783114,0.47124023,3776.1,3775.9,2.64837]
[1717432783336,1.16511654,3776.0,3775.9,3.96963577]
[1717432783547,1.71589204,3776.0,3775.9,3.96963577]
[1717432784353,0.47075616,3776.0,3775.9,3.96963577]
[1717432784538,1.16510772,3776.0,3775.9,3.96963577]
[1717432785037,0.47075616,3776.0,3775.9,3.96963577]
[1717432785768,0.47075616,3776.0,3775.9,4.36659935]
[1717432785930,0.5507755,3776.3,3775.9,4.36659935]
[1717432786130,0.5507755,3776.3,3776.1,2.64823]
[1717432786393,0.5507755,3776.3,3776.2,1.32126577]
[1717432786863,1.71569861,3776.3,3776.2,1.32126577]
[1717432787069,1.16492311,3776.3,3776.2,1.32126577]
[1717432787268,1.71514118,3776.3,3776.2,1.32126577]
[1717432787940,1.71514118,3776.3,3775.4,3.39699858]
[1717432788268,3.49332282,3776.2,3775.7,2.64846]
[1717432788428,1.71514089,3776.1,3775.8,1.32126577]
[1717432788741,0.47067808,3776.0,3775.8,1.32126577]
[1717432788922,0.47067808,3775.9,3775.8,1.32126577]
[1717432789551,0.47067808,3775.9,3775.8,1.75220833]
[1717432789937,0.55021807,3776.2,3775.8,1.75220833]
[1717432790144,0.47068776,3776.1,3775.9,3.96963577]
[1717432790338,0.55021807,3776.3,3775.9,3.96963577]
[1717432790574,0.47068246,3776.2,3775.9,3.96963577]
[1717432790755,0.55021807,3776.3,3776.0,0.44005783]
[1717432790959,1.16493132,3776.2,3776.1,1.32126577]
[1717432792179,1.16493132,3776.2,3775.9,2.64837]
[1717432792473,1.16481454,3776.1,3775.9,3.96963577]
[1717432792697,0.47068137,3776.0,3775.9,1.32126577]
[1717432792898,1.16480403,3776.0,3775.9,1.32126577]
[1717432793257,1.16480403,3776.0,3775.5,2.64861]
[1717432793563,0.47068137,3775.9,3775.6,1.32126577]
[1717432793872,0.47057887,3775.8,3775.6,1.32126577]
[1717432794079,0.55021807,3776.0,3775.6,1.32126577]
[1717432794289,1.16467473,3775.9,3775.6,1.32126577]
[1717432794471,0.4705771,3775.8,3775.6,1.32126577]
[1717432794671,0.55021807,3776.0,3775.6,1.32126577]
[1717432794897,1.16465006,3775.9,3775.6,1.32126577]
[1717432795104,0.55021807,3776.0,3775.6,1.32126577]
[1717432795283,0.47056975,3775.9,3775.6,1.32126577]
[1717432795474,0.55021807,3776.0,3775.6,1.32126577]
[1717432795677,1.16463743,3775.9,3775.6,1.32126577]
[1717432796012,0.47056207,3775.9,3775.6,1.32126577]
[1717432796166,0.55021807,3776.0,3775.6,1.32126577]
[1717432796367,1.16460128,3775.9,3775.6,1.32126577]
[1717432796587,0.55021807,3776.0,3775.6,1.32126577]
[1717432796899,1.16462142,3775.9,3775.6,1.32126577]
[1717432797097,0.47055565,3775.8,3775.6,1.32126577]
[1717432797403,0.55021807,3776.0,3775.6,1.32126577]
[1717432797602,1.16459703,3775.9,3775.6,1.32126577]
[1717432797804,0.55021807,3776.0,3775.6,1.32126577]
[1717432798015,0.47057335,3775.9,3775.6,1.32126577]
[1717432798216,0.55021807,3776.1,3775.7,2.64851]
[1717432798426,0.47056224,3776.0,3775.8,1.32126577]
[1717432798565,0.55021807,3776.1,3775.9,2.64837]
[1717432798766,0.55021807,3776.1,3776.0,1.32126577]
[1717432799084,0.47058222,3776.1,3776.0,1.32126577]
[1717432800076,0.47058222,3776.1,3775.5,2.64858]
[1717432800278,0.47058222,3776.1,3775.7,2.6485]
[1717432800497,1.714881,3776.0,3775.8,1.32126577]
[1717432800810,1.16466293,3775.9,3775.8,1.32126577]
[1717432800982,1.16464407,3775.9,3775.7,2.6485]
[1717432801162,0.55021807,3776.0,3775.7,1.32126577]
[1717432801367,1.71471835,3775.9,3775.7,1.32126577]
[1717432801619,1.16450028,3775.8,3775.7,1.32126577]
[1717432802268,1.71471835,3775.8,3775.7,1.32126577]
[1717432802464,1.71471835,3775.8,3775.3,2.64872]
[1717432802661,1.71435674,3775.7,3775.3,3.96998577]
[1717432802919,1.71428386,3775.6,3775.3,3.96998577]
[1717432803068,1.71428386,3775.5,3775.3,1.32126577]
[1717432803267,0.47050672,3775.4,3775.3,1.32126577]
[1717432803509,1.7143578,3775.4,3775.3,1.32126577]
[1717432803821,2.2059416,3775.4,3774.5,2.64931]
[1717432803996,0.54970996,3775.2,3774.6,1.32126577]
[1717432804198,1.16376355,3775.1,3774.6,1.32126577]
[1717432804395,1.16374945,3775.0,3774.6,1.32126577]
[1717432804585,0.54970996,3775.1,3774.6,1.32126577]
[1717432804787,1.16387955,3775.0,3774.6,1.32126577]
[1717432804987,0.47025473,3774.9,3774.6,1.32126577]
[1717432805201,0.54970996,3775.1,3774.6,1.32126577]
[1717432805399,1.71385371,3775.0,3774.6,1.32126577]
[1717432805565,1.16414375,3774.9,3774.6,1.32126577]
[1717432805770,0.47041674,3774.8,3774.6,1.32126577]
[1717432806041,0.54970996,3774.9,3774.6,1.32126577]
[1717432806173,0.4704055,3774.8,3774.6,1.32126577]
[1717432806511,0.54970996,3775.0,3774.6,1.32126577]
[1717432806669,0.4704058,3774.9,3774.6,1.32126577]
[1717432806870,0.54970996,3775.1,3774.6,1.32126577]
[1717432807217,0.47044979,3775.0,3774.6,1.32126577]
[1717432807565,0.47044979,3775.0,3774.6,1.71832335]
[1717432807770,0.54970996,3775.2,3775.1,2.64893]
[1717432807972,0.54970996,3775.6,3775.5,2.64865]
[1717432808211,0.4704368,3775.6,3775.5,4.23478077]
[1717432808436,0.4704368,3775.7,3775.5,4.23478077]
[1717432808723,1.57931767,3776.2,3775.7,2.6485]
[1717432808724,0.54970996,3776.0,3775.7,2.6485]
[1717432809071,1.71425423,3775.9,3775.7,2.6485]
[1717432809270,0.47052442,3775.8,3775.7,2.6485]
[1717432810395,0.47052442,3775.8,3775.3,2.64875]
[1717432810396,1.16460882,3775.8,3775.3,2.64875]
[1717432810597,1.71473885,3775.7,3775.4,1.32126577]
[1717432810773,1.16460882,3775.6,3775.4,1.32126577]
[1717432810969,1.16460882,3775.5,3775.4,1.32126577]
[1717432811432,0.47052442,3775.5,3775.4,1.71826735]
[1717432811613,0.55013003,3775.8,3775.5,2.64865]
[1717432811825,0.55013003,3775.8,3775.7,2.64851]
[1717432812116,0.55013003,3775.8,3775.7,3.96977577]
[1717432812422,0.55013003,3776.0,3775.7,3.96977577]
[1717432812725,1.16515086,3775.9,3775.8,1.32126577]
[1717432812931,1.1651547,3775.9,3775.8,1.32126577]
[1717432813133,0.55013003,3776.0,3775.9,5.43637]
[1717432813335,0.55013003,3776.2,3775.9,6.75763577]
[1717432813616,3.05013003,3776.6,3776.3,2.64809]
[1717432813771,3.05013003,3776.6,3776.5,2.64795]
[1717432813976,3.05013003,3776.6,3776.5,3.96921577]
[1717432813977,3.9432325,3776.6,3776.5,3.96921577]
[1717432814376,3.05013003,3776.6,3776.5,3.96921577]
[1717432814800,3.39317336,3776.6,3776.5,3.96921577]
[1717432818276,4.22005814,3776.6,3776.5,3.96921577]
[1717432818478,4.22005814,3776.6,3776.5,2.64795]
[1717432818938,4.21091431,3776.6,3776.5,2.64795]
[1717432819116,4.21091431,3776.6,3776.1,2.64819]
[1717432819341,0.55104162,3776.3,3776.2,1.32126577]
[1717432819541,1.44421498,3776.3,3776.2,1.32126577]
[1717432820407,0.89317336,3776.3,3776.2,1.32126577]
[1717432821009,1.44410971,3776.3,3776.2,1.32126577]
[1717432825791,1.44432805,3776.3,3776.2,1.32126577]
[1717432825995,1.44432805,3776.3,3776.2,1.71821135]
[1717432827443,1.44433793,3776.3,3776.2,1.71821135]
[1717432828996,0.89340158,3776.3,3776.2,1.71821135]
[1717432830434,0.31538642,3776.3,3776.2,1.71821135]
[1717432831472,0.3654798,3776.3,3776.2,1.71821135]
[1717432832621,0.94342855,3776.3,3776.2,1.71821135]
[1717432832821,1.4943649,3776.3,3776.2,1.71821135]
[1717432833229,1.49430457,3776.3,3776.2,1.71821135]
[1717432833467,0.94336822,3776.3,3776.2,1.71821135]
[1717432834081,0.36543589,3776.3,3776.2,1.71821135]
[1717432836045,0.943362,3776.3,3776.2,1.71821135]
[1717432836248,0.89326862,3776.3,3776.1,2.64819]
[1717432836498,0.89326862,3776.3,3776.1,3.96945577]
[1717432836499,0.3653491,3776.2,3776.1,3.96945577]
[1717432836641,0.94327597,3776.2,3776.1,3.96945577]
[1717432837240,1.7698384,3776.2,3776.1,3.96945577]
[1717432837465,0.94327597,3776.2,3776.1,3.96945577]
[1717432837852,1.49382947,3776.2,3776.1,3.96945577]
[1717432839743,0.94327597,3776.2,3775.7,2.64846]
[1717432839939,0.55054642,3776.0,3775.8,1.32126577]
[1717432840195,1.4438158,3775.9,3775.8,1.32126577]
[1717432840395,1.49360122,3775.9,3775.8,1.32126577]
[1717432840694,0.9430548,3775.9,3775.8,1.32126577]
[1717432840991,2.34207879,3775.9,3775.8,1.32126577]
[1717432841199,3.92115339,3775.9,3775.5,7.32]
[1717432841521,3.8705341,3775.8,3775.5,1.32126577]
[1717432841693,0.55048242,3775.6,3775.5,1.32126577]
[1717432841872,1.71899794,3775.6,3774.9,2.64903]
[1717432842056,0.55047118,3775.3,3775.0,1.32126577]
[1717432842384,1.49232902,3775.2,3775.0,1.32126577]
[1717432842568,0.89297968,3775.1,3775.0,1.32126577]
[1717432842784,0.94250976,3775.1,3775.0,1.32126577]
[1717432843019,0.36487259,3775.1,3775.0,1.32126577]
[1717432843161,0.9424892,3775.1,3775.0,1.32126577]
[1717432844914,1.49296038,3775.1,3775.0,1.32126577]
[1717432845071,0.9424892,3775.1,3775.0,1.32126577]
[1717432845279,0.36487259,3775.1,3775.0,1.32126577]
[1717432845484,0.04953008,3775.1,3775.0,1.32126577]
[1717432846018,0.3643143,3775.1,3775.0,1.32126577]
[1717432846207,0.04935784,3775.1,3775.0,1.32126577]
[1717432846405,0.55047118,3775.3,3775.0,1.32126577]
[1717432846611,0.94159969,3775.2,3775.0,1.32126577]
[1717432846811,0.04925918,3775.2,3775.0,1.32126577]
[1717432846980,0.55047118,3775.3,3775.0,1.32126577]
[1717432847180,0.94161002,3775.2,3775.0,1.32126577]
[1717432847418,0.04925918,3775.2,3775.0,1.32126577]
[1717432847641,0.55047118,3775.3,3775.0,1.32126577]
[1717432847837,0.36418089,3775.2,3775.0,1.32126577]
[1717432848119,0.8922565,3775.1,3775.0,1.32126577]
[1717432848520,1.49196944,3775.1,3775.0,1.32126577]
[1717432848881,0.94149826,3775.1,3774.5,2.6493]
[1717432849205,1.44223561,3775.0,3774.6,1.32126577]
[1717432849404,0.94118921,3774.9,3774.6,1.32126577]
[1717432849623,0.31492171,3774.8,3774.6,1.32126577]
[1717432849921,0.04905888,3774.7,3774.6,1.32126577]
[1717432850215,0.31479052,3774.7,3774.6,1.32126577]
[1717432850419,0.94108228,3774.7,3774.6,1.32126577]
[1717432850924,0.94108228,3774.7,3774.6,1.71832235]
[1717432850925,0.04926444,3774.7,3774.6,1.71832235]
[1717432851228,0.54997911,3775.0,3774.6,1.71832235]
[1717432851386,0.94107765,3774.9,3774.6,1.32126577]
[1717432851583,0.31473018,3774.8,3774.6,1.32126577]
[1717432851783,0.04899613,3774.7,3774.6,1.32126577]
[1717432851990,0.54997911,3775.0,3774.6,1.32126577]
[1717432852191,0.94081228,3774.9,3774.6,1.32126577]
[1717432852404,0.314739,3774.8,3774.6,1.32126577]
[1717432852629,0.04895519,3774.7,3774.6,1.32126577]
[1717432852834,0.54997911,3775.0,3774.6,1.32126577]
[1717432853047,0.94076884,3774.9,3774.6,1.32126577]
[1717432853206,0.31473675,3774.8,3774.7,2.64921]
[1717432853407,0.54997911,3775.2,3774.9,2.64906]
[1717432853596,0.04668649,3775.1,3775.0,3.97026577]
[1717432853800,0.54997911,3775.5,3775.0,3.97026577]
[1717432854025,0.36140008,3775.4,3775.0,3.97026577]
[1717432854219,0.04664786,3775.4,3775.1,0.62571658]
[1717432854495,0.04664786,3775.4,3775.3,2.64879]
[1717432854693,0.36139584,3775.4,3775.3,3.97005577]
[1717432856701,0.04664786,3775.4,3775.3,3.97005577]
[1717432856998,0.31465986,3775.4,3775.3,1.32126577]
[1717432857199,0.36149924,3775.4,3775.3,1.32126577]
[1717432857430,1.48833043,3775.4,3775.3,1.32126577]
[1717432857733,0.93835132,3775.4,3775.3,1.32126577]
[1717432858926,1.48790165,3775.4,3775.3,1.32126577]
[1717432859110,0.93835132,3775.4,3775.3,1.32126577]
[1717432859326,1.48790165,3775.4,3775.3,1.32126577]
[1717432859540,0.93835132,3775.4,3775.3,1.32126577]
[1717432860263,1.48790165,3775.4,3775.3,1.32126577]
[1717432860743,1.48790165,3775.4,3775.0,2.649]
[1717432860895,1.44106227,3775.3,3775.1,1.32126577]
[1717432861303,0.93787323,3775.2,3775.1,1.32126577]
[1717432861502,0.36102115,3775.2,3775.1,1.32126577]
[1717432862120,0.36102115,3775.2,3775.1,1.71829235]
[1717432862336,0.04636129,3775.2,3774.5,2.64931]
[1717432862644,0.31451828,3775.1,3774.5,1.32126577]
[1717432862803,0.54955033,3774.8,3774.5,1.32126577]
[1717432863011,0.93715228,3774.7,3774.5,1.32126577]
[1717432863203,0.0460442,3774.7,3774.5,1.32126577]
[1717432863513,0.54955033,3774.8,3774.1,2.64956]
[1717432863815,1.48653331,3774.7,3774.2,1.32126577]
[1717432864055,0.89093878,3774.6,3774.2,1.32126577]
[1717432864335,0.59559453,3774.7,3774.2,1.32126577]
[1717432864336,0.04595274,3774.5,3774.2,1.32126577]
[1717432864706,0.54955033,3774.7,3774.2,1.32126577]
[1717432864907,0.04590701,3774.4,3774.2,1.32126577]
[1717432865133,0.54955033,3774.7,3774.2,1.32126577]
[1717432865606,0.36043755,3774.6,3773.7,2.64985]
[1717432865843,1.48657016,3774.6,3773.8,1.32126577]
[1717432866063,1.48657016,3774.6,3773.7,2.64985]
[1717432866064,1.44057169,3774.5,3773.7,2.64985]
[1717432866232,0.36016866,3774.4,3773.7,3.97111577]
[1717432866561,4.13556724,3774.4,3773.7,3.97111577]
[1717432866704,3.55914985,3774.4,3773.7,3.97111577]
[1717432866903,1.44039915,3774.3,3773.7,3.97111577]
[1717432867141,1.44039915,3774.2,3773.7,3.97111577]
[1717432867343,0.31443503,3774.1,3773.7,3.97111577]
[1717432867705,0.04500494,3774.0,3773.7,3.97111577]
[1717432868473,0.04495918,3773.9,3773.7,3.97111577]
[1717432868769,5.05336207,3774.4,3773.7,3.97111577]
[1717432868770,1.24286684,3774.3,3773.7,3.97111577]
[1717432868926,0.04491342,3773.8,3773.3,2.65016]
[1717432869132,0.54955033,3774.2,3773.4,1.32126577]
[1717432869333,0.04483575,3773.7,3773.4,1.32126577]
[1717432869534,2.4828,3774.0,3773.4,1.32126577]
[1717432869732,0.04478999,3773.6,3773.4,1.32126577]
[1717432869959,2.4828,3774.0,3773.3,2.65016]
[1717432870168,0.88220944,3773.9,3773.3,3.97142577]
[1717432870464,0.92713672,3773.9,3773.3,3.97142577]
[1717432870969,0.61312831,3773.9,3773.3,3.97142577]
[1717432876215,0.04492728,3773.9,3773.5,2.65005]
[1717432876367,0.04492728,3773.9,3773.6,3.24326577]
[1717432876547,0.54955033,3774.8,3774.3,2.64949]
[1717432876748,0.54955033,3774.9,3774.3,3.97075577]
[1717432877007,0.04401418,3774.7,3774.3,3.97075577]
[1717432877296,0.04242119,3774.6,3774.3,3.97075577]
[1717432877514,0.04242119,3774.6,3774.4,1.32126577]
[1717432877646,0.54955033,3775.1,3774.4,1.32126577]
[1717432877845,0.04253216,3775.0,3774.4,1.32126577]
[1717432878286,3.02185033,3775.2,3774.6,2.64926]
[1717432878287,0.54955033,3775.1,3774.6,2.64926]
[1717432878585,0.04253216,3775.0,3774.7,1.32126577]
[1717432879043,0.54955033,3775.2,3774.2,2.64952]
[1717432879249,1.48172547,3775.1,3774.4,2.64941]
[1717432879447,0.88958815,3775.0,3774.5,1.32126577]
[1717432879704,0.04257387,3774.9,3774.5,1.32126577]
[1717432880083,0.04257387,3774.9,3774.6,2.64927]
[1717432880250,0.54955033,3775.1,3774.7,1.32126577]
[1717432880604,0.04265303,3775.0,3774.7,1.32126577]
[1717432881078,0.04265875,3774.9,3774.7,1.32126577]
[1717432881275,0.54955033,3775.2,3774.7,1.32126577]
[1717432881480,0.04275019,3775.1,3774.7,1.32126577]
[1717432881782,0.31401946,3775.0,3774.7,1.32126577]
[1717432881987,0.04275019,3775.1,3774.7,1.32126577]
[1717432882163,0.04265875,3774.9,3774.7,1.32126577]
[1717432882365,0.31403246,3775.0,3774.7,1.32126577]
[1717432882563,0.04261303,3774.8,3774.7,1.32126577]
[1717432882889,0.04261303,3774.8,3774.7,1.71831935]
[1717432883087,1.09931485,3775.5,3774.7,1.71831935]
[1717432883088,0.54955033,3775.3,3774.8,5.1469]
[1717432883253,0.54955033,3775.5,3775.2,2.64886]
[1717432883455,1.57820351,3775.9,3775.3,1.32126577]
[1717432883456,0.86373936,3775.7,3775.3,1.32126577]
[1717432883653,0.31414959,3775.6,3775.2,2.64886]
[1717432883861,0.54955033,3775.7,3775.2,2.64886]
[1717432884055,0.57617702,3775.6,3775.2,2.64886]
[1717432884307,0.86369046,3775.6,3775.2,2.64886]
[1717432884585,1.43986748,3775.5,3774.8,2.64913]
[1717432884891,1.43986748,3775.4,3774.8,3.97039577]
[1717432885196,0.82572856,3775.5,3774.8,3.97039577]
[1717432885197,1.43986748,3775.3,3774.8,3.97039577]
[1717432885406,1.43986748,3775.2,3774.8,3.97039577]
[1717432885549,0.89031715,3775.1,3774.8,2.64913]
[1717432885750,0.31414013,3775.0,3774.8,2.64913]
[1717432886002,0.89044629,3775.0,3774.8,2.64913]
[1717432886158,0.31429484,3774.9,3774.8,2.64913]
[1717432886695,0.54955033,3775.3,3774.8,4.23530877]
[1717432886987,0.54955033,3775.5,3775.4,2.64872]
[1717432887152,0.31432521,3775.5,3775.4,3.96998577]
[1717432887349,0.54955033,3775.7,3775.4,3.96998577]
[1717432887549,0.31435863,3775.6,3775.4,3.96998577]
[1717432887963,0.31435863,3775.5,3775.4,3.96998577]
[1717432888365,0.54955033,3775.7,3775.4,3.96998577]
[1717432888586,0.89085456,3775.6,3775.4,3.96998577]
[1717432888793,0.31432696,3775.5,3775.4,3.96998577]
[1717432889797,0.04282622,3775.5,3775.4,3.96998577]
[1717432890091,2.95070209,3776.3,3775.4,3.96998577]
[1717432890092,1.44034344,3775.6,3775.4,3.96998577]
[1717432890254,0.35714472,3775.5,3775.4,3.96998577]
[1717432890454,0.0428545,3775.5,3775.4,3.96998577]
[1717432890769,0.54955033,3775.7,3775.4,2.64872]
[1717432890985,0.54955033,3775.7,3774.4,2.64938]
[1717432890986,0.5923799,3775.5,3774.6,2.64924]
[1717432891297,0.5493866,3775.3,3774.7,1.32126577]
[1717432891449,1.48282175,3775.2,3774.7,1.32126577]
[1717432891656,0.8907178,3775.1,3774.7,1.32126577]
[1717432891899,0.0426259,3775.0,3774.7,1.32126577]
[1717432892118,0.5493866,3775.1,3774.7,1.32126577]
[1717432892398,0.043004,3774.9,3774.7,1.32126577]
[1717432892582,0.5763742,3775.0,3774.7,1.32126577]
[1717432892784,0.04295828,3774.8,3774.7,1.32126577]
[1717432892956,0.5493866,3775.1,3774.7,1.32126577]
[1717432893158,0.5493866,3775.1,3774.8,2.64913]
[1717432893410,0.04304972,3775.0,3774.8,2.64913]
[1717432893713,0.5493866,3775.2,3774.8,2.64913]
[1717432893872,0.3573503,3775.1,3774.8,2.64913]
[1717432894192,0.04309543,3775.1,3774.8,2.64913]
[1717432895595,0.04309543,3775.1,3774.8,3.04616958]
[1717432895965,0.5493866,3775.4,3774.8,3.04616958]
[1717432896277,1.43991077,3775.3,3774.8,2.64913]
[1717432896459,0.35735629,3775.2,3774.8,2.64913]
[1717432896654,0.04314114,3775.2,3774.8,2.64913]
[1717432896855,0.31417103,3775.1,3774.8,2.64913]
[1717432897082,0.5493866,3775.3,3774.8,2.64913]
[1717432897282,0.93349744,3775.2,3774.8,2.64913]
[1717432897497,0.31415708,3775.1,3774.8,2.64913]
[1717432897694,0.04302144,3775.0,3774.8,2.64913]
[1717432898205,0.5493866,3775.3,3774.8,2.64913]
[1717432898357,0.04297059,3774.9,3774.8,2.64913]
[1717432898704,0.35712555,3774.9,3774.8,2.64913]
[1717432899165,0.93331741,3774.9,3774.8,2.64913]
[1717432900508,1.48270401,3774.9,3774.4,2.64936]
[1717432900657,0.31415496,3774.8,3774.5,1.32126577]
[1717432900861,0.04283542,3774.7,3774.5,1.32126577]
[1717432901090,0.5493866,3774.9,3774.5,1.32126577]
[1717432901272,0.89044172,3774.8,3774.5,1.32126577]
[1717432901474,0.04283542,3774.7,3774.5,1.32126577]
[1717432901705,0.5493866,3774.9,3774.5,1.32126577]
[1717432902006,0.35707737,3774.8,3774.5,1.32126577]
[1717432902170,0.04288115,3774.8,3774.5,1.32126577]
[1717432902370,0.04288115,3774.8,3774.6,2.64928]
[1717432902571,0.04288115,3774.8,3774.6,3.97054577]
[1717432902874,0.5493866,3775.0,3774.6,3.97054577]
[1717432903071,0.93345985,3774.9,3774.6,3.97054577]
[1717432903299,0.04292429,3774.9,3774.6,3.97054577]
[1717432904820,0.04292429,3774.9,3774.6,4.40730661]
[1717432905507,0.04292429,3774.9,3774.7,1.32126577]
[1717432905874,0.31429732,3774.8,3774.7,1.32126577]
[1717432906074,0.04284671,3774.8,3774.7,1.32126577]
[1717432906408,0.5493866,3775.0,3774.7,1.32126577]
[1717432906613,0.04284671,3774.8,3774.7,1.32126577]
[1717432906798,0.5493866,3775.0,3774.7,1.32126577]
[1717432906999,0.31429996,3774.9,3774.7,1.32126577]
[1717432907198,0.04289243,3774.9,3774.7,1.32126577]
[1717432907401,0.31431035,3774.8,3774.7,1.32126577]
[1717432907621,0.04289243,3774.9,3774.7,1.32126577]
[1717432907790,0.04284671,3774.8,3774.7,1.32126577]
[1717432908115,0.3143182,3774.9,3774.7,1.32126577]
[1717432908419,0.35716491,3774.8,3774.7,1.32126577]
[1717432909209,0.93362845,3774.8,3774.7,1.32126577]
[1717432909406,1.48301424,3774.8,3774.7,1.32126577]
[1717432910028,0.93362764,3774.8,3774.0,7.32]
[1717432910323,1.44016753,3774.7,3774.1,1.32126577]
[1717432910486,0.5493866,3774.5,3774.1,1.32126577]
[1717432910690,0.35696851,3774.4,3774.1,1.32126577]
[1717432910892,0.04265608,3774.4,3774.1,1.32126577]
[1717432911090,0.04265608,3774.4,3774.1,3.97083577]
[1717432912003,0.31428527,3774.3,3774.1,3.97083577]
[1717432912393,0.04256461,3774.2,3774.1,3.97083577]
[1717432913019,0.5493866,3774.5,3774.1,3.97083577]
[1717432913219,0.04224051,3774.2,3774.1,3.97083577]
[1717432913422,0.5493866,3774.5,3774.1,3.97083577]
[1717432913616,0.04224051,3774.2,3774.1,3.97083577]
[1717432913820,0.5493866,3774.5,3774.1,3.97083577]
[1717432914022,0.31432198,3774.4,3774.1,3.97083577]
[1717432914329,0.04236542,3774.4,3774.1,3.97083577]
[1717432914531,0.31434554,3774.3,3774.1,3.97083577]
[1717432914705,0.04227396,3774.2,3774.1,3.97083577]
[1717432915129,0.5493866,3774.4,3774.1,3.97083577]
[1717432915331,0.04227853,3774.3,3774.1,3.97083577]
[1717432916235,0.31442421,3774.2,3774.1,3.97083577]
[1717432916393,0.31442421,3774.2,3773.7,2.64987]
[1717432916598,1.44045369,3774.1,3773.7,3.97113577]
[1717432916801,0.31442421,3774.0,3773.7,3.97113577]
[1717432917004,0.89109737,3773.9,3773.7,3.97113577]
[1717432917204,0.31442421,3773.8,3773.7,3.97113577]
[1717432917539,0.04196052,3773.8,3773.7,3.97113577]
[1717432917746,0.04196052,3773.8,3773.7,4.36824935]
[1717432917931,0.5493866,3774.1,3773.7,4.36824935]
[1717432918240,0.9335173,3774.0,3773.8,1.32126577]
[1717432918451,0.3145622,3773.9,3773.8,1.32126577]
[1717432918795,0.35657255,3773.9,3773.8,1.32126577]
[1717432919200,1.48291848,3773.9,3773.8,1.32126577]
[1717432919421,0.93353188,3773.9,3773.8,1.32126577]
[1717432920047,1.48339289,3773.9,3773.7,2.64987]
[1717432920340,1.44151453,3773.8,3773.7,3.97113577]
[1717432920540,0.93371679,3773.8,3773.7,3.97113577]
[1717432920914,0.93371679,3773.8,3773.7,1.32126577]
[1717432921115,1.75944535,3773.8,3773.7,1.32126577]
[1717432921500,1.75944535,3773.8,3773.3,5.02864]
[1717432921814,0.55011056,3773.6,3773.4,1.32126577]
[1717432922013,1.44143107,3773.5,3773.4,1.32126577]
[1717432922245,0.93332445,3773.5,3773.4,1.32126577]
[1717432922447,1.75905301,3773.5,3773.0,7.32]
[1717432922618,1.44155931,3773.4,3773.1,1.32126577]
[1717432922819,0.89152153,3773.3,3773.1,1.32126577]
[1717432923019,0.89152153,3773.2,3773.1,3.90510435]
[1717432923335,0.55003778,3773.3,3773.2,2.65027]
[1717432923531,0.31459351,3773.3,3773.2,3.97153577]
[1717432924143,0.55003778,3773.5,3773.2,3.97153577]
[1717432924358,0.31448664,3773.4,3773.3,1.32126577]
[1717432925063,0.89119758,3773.4,3773.3,1.32126577]
[1717432925265,0.31448664,3773.4,3773.3,1.32126577]
[1717432925570,0.55003778,3773.6,3773.4,2.65012]
[1717432925755,0.55003778,3773.7,3773.5,1.32126577]
[1717432925952,1.57671481,3774.1,3773.6,2.64998]
[1717432925953,0.55003778,3773.9,3773.6,2.64998]
[1717432926138,0.55003778,3774.1,3773.8,2.64984]
[1717432926329,0.55003778,3774.3,3773.9,1.32126577]
[1717432926528,0.89100596,3774.2,3774.0,2.6497]
[1717432926876,0.55003778,3774.3,3774.1,1.32126577]
[1717432927054,0.89088749,3774.2,3774.1,1.32126577]